Cogmind - Beta 15 @@@ ROGUE MODE // 2025.05.16 @ 15:46:25 Player: Anting Result: Destroyed by G-47 Trooper with Particle Gun Performance ------------- Evolutions (0) 0 Regions Visited (2) 400 Robots Destroyed (17) 85 Value Destroyed (275) 275 Prototype IDs (0) 0 Alien Tech Used (0) 0 Bonus (0) 0 TOTAL SCORE: 760 Bonus ------- None Cogmind --------- Core Integrity 0/250 Matter 299/300 Energy 89/100 System Corruption 0% Temperature Cool (9) Movement Core (50) Location -10/Mines Parts ------- > --- POWER (1) -------- (None) > --- PROPULSION (2) --- (None) > --- UTILITY (2) ------ (None) > --- WEAPON (2) ------- (None) > --- INVENTORY (5) ---- Light Treads Seismic Detector Grenade Launcher Grenade Launcher Grenade Launcher Peak State ------------ > --- POWER ------------ Light Ion Engine > --- PROPULSION ------- Aluminum Leg Aluminum Leg > --- UTILITY ---------- Medium Storage Unit Seismic Detector > --- WEAPON ----------- Medium Laser Assault Rifle > --- INVENTORY -------- Light Ion Engine Light Treads Light Treads Small Storage Unit High-capacity Matter Pod Light Armor Plating Light Armor Plating Light Armor Plating Light Armor Plating Light Armor Plating [Rating: 8] Favorites ----------- Power Ion Engine Engine Ion Engine Propulsion Aluminum Leg Treads Light Treads Leg Aluminum Leg Utility Seismic Detector Device Seismic Detector Storage Large Storage Unit Protection Light Armor Plating Weapon Assault Rifle Energy Gun Medium Laser Ballistic Gun Assault Rifle Build | -11 -10 -10 ------- Run | Yrd Mat Min Slots Evolved . | . . . Power . | . . . Propulsion . | . . . Utility . | . . . Weapon . | . . . Parts Attached 15 | 7 4 4 Power 3 | 1 1 1 Engine 3 | 1 1 1 Core . | . . . Reactor . | . . . Propulsion 4 | 2 1 1 Treads 1 | . . 1 Leg 3 | 2 1 . Wheel . | . . . Hover . | . . . Flight . | . . . Utility 5 | 2 2 1 Device 1 | 1 . . Storage 3 | 1 2 . Processor . | . . . Hackware . | . . . Protection 1 | . . 1 Artifact . | . . . Weapon 3 | 2 . 1 Energy Gun 1 | 1 . . Energy Cannon . | . . . Ballistic Gun 2 | 1 . 1 Ballistic Cannon . | . . . Launcher . | . . . Special Weapon . | . . . Impact Weapon . | . . . Slashing Weapon . | . . . Piercing Weapon . | . . . Special Melee Weapon . | . . . Unidentified Prototypes . | . . . Parts Lost 9 | . . 9 Power 1 | . . 1 Propulsion 3 | . . 3 Utility 2 | . . 2 Weapon 3 | . . 3 Highest Loss Streak 9 | . . 9 To Critical Strikes . | . . . Average Backups 11 | 2 10 14 Power . | . 1 . Propulsion 2 | 1 2 3 Utility 5 | . 6 6 Weapon 1 | . . 3 Tool/Special . | . . . Unused Backups 9 | . 1 8 Power 1 | . 1 . Propulsion 2 | . . 2 Utility 6 | . . 6 Weapon . | . . . Tool/Special . | . . . Average Slot Usage (%) 99 | . 100 97 Engine 13 | . 14 13 Leg 27 | . 28 27 Device 13 | . 14 13 Storage 13 | . 14 13 Energy Gun 14 | . 14 14 Ballistic Gun 13 | . 14 13 Peak Build Rating 8 | 7 8 8 Average Rating 7 | 5 7 7 On Entrance 5 | . 7 8 Naked Turns 5 | . . 5 Heaviest Build 30 | 13 30 30 Greatest Support 20 | 20 20 20 Greatest Overweight (x) 1 | . 1 1 Average Overweight (x) . | . . . Largest Inventory Capacity 15 | 8 15 15 Average Capacity 13 | 7 13 14 Most Carried 15 | 3 15 15 Average Carried 11 | 2 10 14 Final Capacity 15 | 8 15 5 Final Carried 15 | 3 15 5 Class Distribution -------------------- 100% | Mutant Dominant Class ---------------- Mutant | -10/Materials Mutant | -10/Mines Resources | -11 -10 -10 ----------- Run | Yrd Mat Min Matter Collected 633 | 293 257 83 Remotely . | . . . Salvage Created 510 | 136 332 42 Parts 38 | 13 19 6 Haulers Intercepted 1 | . 1 . Recyclers Shooed 1 | 1 . . Parts Field Recycled . | . . . Retrieved Matter . | . . . Parts Self-Destructed . | . . . Prevented . | . . . Kills | -11 -10 -10 ------- Run | Yrd Mat Min Combat Hostiles Destroyed 8 | . 5 3 Guns 8 | . 5 3 Classes Destroyed 7 | 2 4 1 Builder 2 | . 2 . Tunneler 4 | 4 . . Hauler 1 | . 1 . Recycler 1 | 1 . . Watcher 1 | . 1 . Swarmer 3 | . . 3 Grunt 5 | . 5 . Best Kill Streak 5 | 5 3 3 Combat Bots Only 3 | . 1 3 Max Kills in Single Turn 2 | 1 1 2 Gunslinging 1 | . . 1 Exploded . | . . . Melee . | . . . Uniques/NPCs Destroyed . | . . . Combat | -11 -10 -10 -------- Run | Yrd Mat Min Hostile Shots Fired 67 | . 30 37 Missed 12 | . 8 4 Hits 55 | . 22 33 Projectile 55 | . 22 33 AOE 18 | . . 18 Damage Taken 1145 | . 274 871 Core 264 | . 82 182 Absorbed by Shields . | . . . Core Remaining (%) 100 | 100 . . Volleys Fired 44 | 11 27 6 Largest 2 | 2 2 2 Hottest 70 | 70 70 70 Shots Fired 85 | 22 51 12 Gun 85 | 22 51 12 Cannon . | . . . Launcher . | . . . Special . | . . . Kinetic 44 | 11 27 6 Thermal 41 | 11 24 6 Explosive . | . . . Electromagnetic . | . . . Robot Hit Streak 10 | 6 10 3 Robot Miss Streak 3 | 3 3 2 Penetration Max . | . . . Secondary Targets 1 | . . 1 Max Gunslinging Chain 1 | . . 1 Shots Hit Robots 52 | 13 33 6 Core Hits 25 | 6 15 4 Critical Kills . | . . . Critical Parts Destroyed . | . . . Critical Strikes 2 | . 2 . Burn 2 | . 2 . Melee Attacks . | . . . Impact . | . . . Slashing . | . . . Piercing . | . . . Sneak Attacks . | . . . Combat Hostiles . | . . . Follow-up Attacks . | . . . Damage Inflicted 728 | 184 458 86 Guns 712 | 184 451 77 Cannons . | . . . Explosions . | . . . Melee . | . . . Ramming 16 | . 7 9 Kinetic 381 | 120 232 29 Thermal 331 | 64 219 48 Explosive . | . . . Electromagnetic . | . . . Impact . | . . . Slashing . | . . . Piercing . | . . . Highest Corruption . | . . . Average Corruption . | . . . Corruption Purged . | . . . Corruption Blocked . | . . . Overload Shots . | . . . Overflow Damage . | . . . Projectiles . | . . . Explosions . | . . . Melee . | . . . Knockbacks . | . . . Impact . | . . . Kinetic . | . . . Secondary . | . . . Self-Inflicted Damage . | . . . Shots . | . . . Rammed . | . . . Targets Rammed 3 | . 1 2 Kicked 3 | . 1 2 Crushed . | . . . Highest Temperature 99 | 81 99 27 Average Temperature 35 | 38 39 12 Received Heat Transfer 195 | . 150 45 Siege Activations . | . . . Martial Activations . | . . . Shielding Activations . | . . . Robots Disrupted . | . . . Combat Hostiles . | . . . Robots Corrupted . | . . . Combat Hostiles . | . . . Parts Fried . | . . . Impact Corruptions . | . . . Robots Melted . | . . . Combat Hostiles . | . . . Parts Melted 3 | . 2 1 Heat Transferred 1110 | 185 777 148 Parts Sabotaged . | . . . Parts Stolen . | . . . Parts Stripped . | . . . Power Chain Reactions . | . . . Alert | -11 -10 -10 ------- Run | Yrd Mat Min Maximum Alert Level . | . . . Low Security (%) 100 | 100 100 100 Level 1 . | . . . Level 2 . | . . . Level 3 . | . . . Level 4 . | . . . Level 5 . | . . . High Security . | . . . Max Security . | . . . Peak Influence 97 | 15 80 97 Initial 27 | . . 27 Average 27 | 2 35 25 Influence Increases 335 | 25 240 70 Destroy 0b10 Robot/C 160 | . 100 60 Destroy 0b10 Robot/NC 45 | 25 20 . Destroy Leader 34 | . 24 10 Successful Hack 49 | . 49 . Destroy Structure 2 | . 2 . Lose Combat Pursuer 45 | . 45 . Influence Decreases 335 | 25 168 142 Entered New Map 45 | . . 45 Time Decay 290 | 25 168 97 Squads Dispatched 1 | . 1 . Investigation . | . . . Extermination . | . . . Reinforcement 1 | . 1 . Assault . | . . . Garrison . | . . . Intercept . | . . . Searches Triggered . | . . . Construction Impeded . | . . . Haulers Reinforced . | . . . Active Scanning Responses . | . . . Cargo Convoy Interrupts . | . . . Stealth | -11 -10 -10 --------- Run | Yrd Mat Min Distress Signals 1 | . 1 . Communications Jammed . | . . . Distress Signals . | . . . Times Spotted 18 | . 11 7 Peak Tracking Total 4 | . 3 4 Tactical Retreats 3 | . 3 . Traps | -11 -10 -10 ------- Run | Yrd Mat Min Traps Triggered . | . . . Indirectly . | . . . Trap Hack Attempts . | . . . Triggered . | . . . Disarmed . | . . . Reprogrammed . | . . . Reused . | . . . Traps Extracted . | . . . Installed . | . . . Triggered . | . . . Machines | -11 -10 -10 ---------- Run | Yrd Mat Min Machines Disabled . | . . . Max in Single Turn . | . . . Machines Repaired . | . . . Machines Dismantled . | . . . Machines Sabotaged . | . . . Overloaded Fab Kills . | . . . Hacking | -11 -10 -10 --------- Run | Yrd Mat Min Machines Accessed 5 | . 5 . Terminals 5 | . 5 . Fabricators . | . . . Repair Stations . | . . . Recycling Units . | . . . Scanalyzers . | . . . Garrison Access . | . . . Total Hacks 15 | . 15 . Successful 8 | . 8 . Failed 7 | . 7 . Catastrophic 2 | . 2 . Database Lockouts . | . . . Manual 12 | . 12 . Terminals 15 | . 15 . Fabricators . | . . . Repair Stations . | . . . Recycling Units . | . . . Scanalyzers . | . . . Garrison Access . | . . . Terminal Hacks 6 | . 6 . Part Schematic 2 | . 2 . Robot Analysis 2 | . 2 . Branch Access Points 1 | . 1 . Zone Layout 1 | . 1 . Fabricator Hacks . | . . . Repair Station Hacks . | . . . Recycling Unit Hacks . | . . . Scanalyzer . | . . . Garrison Access Hacks . | . . . Unauthorized Hacks 2 | . 2 . Terminals 2 | . 2 . Botnet 2 | . 2 . Fabricators . | . . . Repair Stations . | . . . Recycling Units . | . . . Scanalyzers . | . . . Garrison Access . | . . . Data Cores Recovered . | . . . Used . | . . . Hacking Detections 5 | . 5 . Full Trace Events . | . . . Feedback Events . | . . . Feedback Blocked . | . . . Robot Schematics Acquired . | . . . Robots Built . | . . . Authchips . | . . . Time . | . . . Total Robot Build Rating . | . . . Part Schematics Acquired 2 | . 2 . Parts Built . | . . . Authchips . | . . . Time . | . . . Total Part Build Rating . | . . . Parts Repaired . | . . . Time . | . . . Parts Recycled . | . . . Recycled Matter . | . . . Retrieved Matter . | . . . Retrieved Components . | . . . Parts Scanalyzed . | . . . Part Schematics Acquired . | . . . Parts Damaged . | . . . Bothacking | -11 -10 -10 ------------ Run | Yrd Mat Min Used RIF Installer . | . . . Robots Hacked . | . . . Non-combat . | . . . Combat . | . . . Robot Hacks Applied . | . . . Relay Couplers Released . | . . . Fabnet Peak Effective % . | . . . Robots Rewired . | . . . Allies Hacked . | . . . Hacks Repelled . | . . . Allies | -11 -10 -10 -------- Run | Yrd Mat Min Total Allies 1 | . . 1 Largest Group 1 | . . 1 Highest-Rated Group 31 | . . 31 Highest-Rated Ally 31 | . . 31 Total Orders . | . . . Ally Attacks 4 | . . 4 Total Damage 40 | . . 40 Kills . | . . . Allies Corrupted . | . . . Allies Melted . | . . . Intel | -11 -10 -10 ------- Run | Yrd Mat Min Active Infowar (turns) 904 | 40 498 366 Seismic 904 | 40 498 366 Robot Analysis Total 2 | . 2 . Derelict Logs Recovered . | . . . Drone Launches . | . . . Drone Recoveries . | . . . Exploration | -11 -10 -10 ------------- Run | Yrd Mat Min Turns Passed 1027 | 144 498 385 Spaces Moved 511 | 88 232 191 Core 19 | 11 . 8 Treads 3 | . . 3 Legs 489 | 77 232 180 Wheels . | . . . Hover . | . . . Flight . | . . . Fastest Speed 50 | 50 120 50 Average Speed 160 | 111 160 183 Slowest Speed 190 | 120 190 190 Overloaded Moves . | . . . Propulsion Burnouts . | . . . Robots Hopped . | . . . Potential Cave-ins . | . . . Cave-ins Triggered . | . . . Exploration Rate (%) 33 | 3 60 38 Regions Visited 2 Branch Regions 1 Pre-discovered Areas . | . . . Known Exits Taken 1 | . 1 . Unknown Exits Taken 1 | 1 . . Scrap Searched 2 | . . 2 Spaces Dug . | . . . Terrain Destroyed . | . . . Melee . | . . . Projectile . | . . . AOE . | . . . Terrain Rammed . | . . . Walls Destroyed . | . . . Machines Disabled . | . . . Actions | -11 -10 -10 --------- Run | Yrd Mat Min Total 627 | 108 308 211 Wait 32 | . 27 5 Move 509 | 87 231 191 Hop . | . . . Pick Up 17 | 3 13 1 Fast Attach 7 | 7 . . Attach 2 | . . 2 Detach . | . . . Swap 6 | . 4 2 Drop 7 | . 5 2 Fire 44 | 11 27 6 Melee . | . . . Ram . | . . . Kick 3 | . 1 2 Crush . | . . . Escape Stasis . | . . . Rewire . | . . . Trap . | . . . Miscellaneous . | . . . Route ------- -11/Scrapyard -10/Materials (discovered 2 exits: *Min x2) -10/Mines History --------- Turn | Location | Event 9 | -11/Scrapyard | Discovered new exit (range 14) 145 | -11/Scrapyard | Entered Materials 329 | -10/Materials | Build established: Mutant 515 | -10/Materials | Identified exit to Mines 643 | -10/Materials | Entered Mines 753 | -10/Mines | Deemed a non-threat by the Exiles lab entrance 832 | -10/Mines | Received a Mining Laser from a helpful Derelict 971 | -10/Mines | Found a hidden stash of uninstalled traps 974 | -10/Mines | Assembled infested the area 1023 | -10/Mines | Core integrity fell below 50% 1026 | -10/Mines | Core integrity fell below 20% 1028 | -10/Mines | Destroyed by G-47 Trooper with Particle Gun Last Messages --------------- 00979_ Acquired 15 matter. 00994_ D-53 Grenadier unfolds itself. 01001_ V0-Z8W(g) destroyed. 01002_ The unstable cave ceiling collapses. 01008_ Assault Rifle destroyed. 01008_ Ion Engine destroyed. 01010_ Aluminum Leg destroyed. 01012_ The unstable cave ceiling collapses. 01013_ Lrg. Storage Unit destroyed. 01014_ The unstable cave ceiling collapses. 01018_ Lgt. Armor Plating destroyed. 01019_ The unstable cave ceiling collapses. 01019_ Aluminum Leg destroyed. 01020_ Med. Laser destroyed. 01020_ Assault Rifle destroyed. 01023_ The unstable cave ceiling collapses. 01023_ Lgt. Treads destroyed. 01023_ D-53 Grenadier destroyed. 01024_ U-05 Engineer lays Concrete. 01028_ The unstable cave ceiling collapses. Map ----- +----------------------------------------------------+ | | | | | | | | | | | | | | | | | | | | | ???????????????????###??????????????????????? | | ??????????##????#### ####??????????????????? | | ????????? ???# # ##?????????????????? | | ?????????" ??# ##????????????????? | | ????????"" ## ##???#####???????? | | ????????"" g #?? #???????? | | ??????? ##?? !! #???????? | | ??????????????#### #? ????????? | | ?????????????????# ### ??????????? | | ?????????????????# # #? !???????????? | | ?????????????????# # ?????###????? | | ?????????????????# # ?????? #????? | | ???????????# ##### d # ???????# #????? | | ???????????# g #????????# #????? | | ???????????#### ## #????????# #????? | | ??????????????#??# # @ #????##### #????? | | ?????????????????#% #????# #????? | | ?????????????????#% #????# ### #????? | | ?????????????????## u##????# #?# #????? | | ??????????????????## ##???# #?# #????? | | ???????????????????###### ##### #?# #????? | | ????????????????????????## % #?# #????? | | ?????????????????????????### # #####?# #????? | | ???????????????????????????# # #?????# #????? | | ???????????????????????????# # #?????# #????? | | ???????????????????????????# # #?????# #????? | | ???????????????????????????# #?????# #????? | | ???????????????????????????#####?????# #????? | | ????????????????????????? ????##?????# #????? | | ????????????????????????? #### #????# #????? | | ?????????????????????????? #???# #????? | | ???????????????????????????? #??# #????? | | ??????????????????????????????# ### ##???? | | ???????????????????????????????# ## #???? | | ?????????????????????????????????# #???? | | ?????????????????????????????????## #???? | | ??????????????????????????????????# ##???? | | ?????????????????????????????????## ##????? | | ???????????????????????????####### #?????? | | ?????????????? #??????????# #?????? | +----------------------------------------------------+ Best States ------------- Heat Dissipation 25 Energy Generation 10 Energy Capacity 250 Matter Stores 300 Matter Capacity 300 Sight Range 16 Terrain Scan Density 10 Armor Coverage 150 Evasion (%) 55 Recoil Reduction 1 Item Schematics ----------------- Huge Storage Unit | -10/Materials | Hacked Hcp. Storage Unit | -10/Materials | Hacked Robot Schematics ------------------ None Fabricated ------------ Nothing Repaired ---------- Nothing Alien Tech Used ----------------- None Achievements -------------- None Challenges ------------ None Game ------ Seed GravmagDispersalDeflector Manual? 0 Play Time 00:06:44 Cumulative 270.8 hours Start 2025.05.16 @ 15:38:14 End 2025.05.16 @ 15:46:25 Sessions 1 Manual Loads 0 Difficulty Rogue Special Mode None Game No. 184 Rogue 184 Adventurer 0 Explorer 0 Win Type - Total 15 Types 6/0/5/1/1/0/0/1/0/1 Lore% 78 Gallery% 72 Achievement% 74 Wizard Run 0 Options --------- Layout 0 ASCII 0 Keyboard 0 Movement Mouse Keybinds 0 Fullscreen 2 Font 24/Smallcaps Map View 76x50 Zoom Use 0% Tactical HUD 1 Map Filters NONE Filters NONE Steam 1 RUN: a3697213-af39-4aef-a78c-9a48e0f955aa